[Event "January 9 Late 2024"]
[Site "https://www.chess.com"]
[Date "2024.01.09"]
[Round "9"]
[White "Slavin, Alexey"]
[Black "Dias, Joao Batista"]
[Result "1-0"]
[Board "137"]
[TimeControl "180+1"]
[WhiteFideId "24104388"]
[BlackFideId "2108240"]
[WhiteElo "2281"]
[BlackElo "2067"]
[WhiteTeam "RUS"]
[BlackTeam "BRA"]
[WhiteClock "0:00:15"]
[BlackClock "0:00:07"]

1. e4 {[%clk 0:02:59]}  e5 {[%clk 0:02:59]} 2. Nf3 {[%clk 0:02:59]}  Nc6 {[%clk 0:02:59]} 3. c3 {[%clk 0:02:59]}  Nf6 {[%clk 0:02:59]} 4. d4 {[%clk 0:02:58]}  Nxe4 {[%clk 0:02:58]} 5. d5 {[%clk 0:02:58]}  Nb8 {[%clk 0:02:57]} 6. Nxe5 {[%clk 0:02:53]}  d6 {[%clk 0:02:57]} 7. Bb5+ {[%clk 0:02:52]}  Bd7 {[%clk 0:02:56]} 8. Nxd7 {[%clk 0:02:51]}  Nxd7 {[%clk 0:02:56]} 9. Qa4 {[%clk 0:02:48]}  Nc5 {[%clk 0:02:54]} 10. Qc2 {[%clk 0:02:44]}  Be7 {[%clk 0:02:46]} 11. O-O {[%clk 0:02:44]}  O-O {[%clk 0:02:46]} 12. b4 {[%clk 0:02:39]}  Na6 {[%clk 0:02:46]} 13. Re1 {[%clk 0:02:35]}  Bf6 {[%clk 0:02:45]} 14. Bb2 {[%clk 0:02:21]}  Nab8 {[%clk 0:02:30]} 15. Nd2 {[%clk 0:02:18]}  c6 {[%clk 0:02:30]} 16. Bc4 {[%clk 0:02:12]}  Ne5 {[%clk 0:02:28]} 17. Bb3 {[%clk 0:02:11]}  a5 {[%clk 0:02:25]} 18. a4 {[%clk 0:02:06]}  Nbd7 {[%clk 0:02:24]} 19. Ne4 {[%clk 0:01:54]}  Be7 {[%clk 0:02:15]} 20. Rad1 {[%clk 0:01:51]}  Rc8 {[%clk 0:01:58]} 21. dxc6 {[%clk 0:01:46]}  Rxc6 {[%clk 0:01:57]} 22. Bd5 {[%clk 0:01:39]}  Rc7 {[%clk 0:01:53]} 23. Qb3 {[%clk 0:01:35]}  Nf6 {[%clk 0:01:40]} 24. Nxd6 {[%clk 0:01:05]}  Bxd6 {[%clk 0:01:37]} 25. Rxe5 {[%clk 0:01:00]}  Kh8 {[%clk 0:01:15]} 26. Rf5 {[%clk 0:00:56]}  Qd7 {[%clk 0:01:03]} 27. Rf3 {[%clk 0:00:51]}  Ng4 {[%clk 0:00:41]} 28. h3 {[%clk 0:00:41]}  Ne5 {[%clk 0:00:38]} 29. Re3 {[%clk 0:00:36]}  Qf5 {[%clk 0:00:37]} 30. Be4 {[%clk 0:00:30]}  Qf4 {[%clk 0:00:37]} 31. Rxd6 {[%clk 0:00:28]}  Nc4 {[%clk 0:00:32]} 32. Rdd3 {[%clk 0:00:24]}  Nxe3 {[%clk 0:00:29]} 33. Rxe3 {[%clk 0:00:24]}  f5 {[%clk 0:00:24]} 34. Bf3 {[%clk 0:00:22]}  Rd8 {[%clk 0:00:20]} 35. bxa5 {[%clk 0:00:21]}  Rcd7 {[%clk 0:00:20]} 36. g3 {[%clk 0:00:19]}  Qh6 {[%clk 0:00:18]} 37. Kg2 {[%clk 0:00:19]}  f4 {[%clk 0:00:18]} 38. gxf4 {[%clk 0:00:18]}  Qxf4 {[%clk 0:00:16]} 39. Qb4 {[%clk 0:00:18]}  Qg5+ {[%clk 0:00:15]} 40. Qg4 {[%clk 0:00:18]}  Qh6 {[%clk 0:00:14]} 41. c4 {[%clk 0:00:18]}  Rf8 {[%clk 0:00:13]} 42. Qxd7 {[%clk 0:00:15]}  Qg5+ {[%clk 0:00:11]} 43. Qg4 {[%clk 0:00:15]}  Qh6 {[%clk 0:00:07]} 44. Re7 {[%clk 0:00:15]} 1-0

[Event "January 9 Late 2024"]
[Site "https://www.chess.com"]
[Date "2024.01.09"]
[Round "9"]
[White "Rodriguez Dominguez, Melissa"]
[Black "Floresvillar Gonzalez, Luis Migu"]
[Result "1-0"]
[Board "141"]
[TimeControl "180+1"]
[WhiteFideId "3517560"]
[BlackFideId "5100542"]
[WhiteElo "2238"]
[BlackElo "2141"]
[WhiteTeam "CUB"]
[BlackTeam "MEX"]
[WhiteClock "0:00:06"]
[BlackClock "0:00:29"]

1. e4 {[%clk 0:02:55]}  e5 {[%clk 0:02:58]} 2. Nf3 {[%clk 0:02:54]}  Nc6 {[%clk 0:02:59]} 3. Bb5 {[%clk 0:02:53]}  a6 {[%clk 0:02:57]} 4. Ba4 {[%clk 0:02:54]}  Nf6 {[%clk 0:02:56]} 5. d3 {[%clk 0:02:53]}  b5 {[%clk 0:02:54]} 6. Bb3 {[%clk 0:02:54]}  Be7 {[%clk 0:02:54]} 7. g4 {[%clk 0:02:47]}  Nxg4 {[%clk 0:02:36]} 8. Rg1 {[%clk 0:02:46]}  d6 {[%clk 0:02:34]} 9. h3 {[%clk 0:02:30]}  Nxf2 {[%clk 0:02:25]} 10. Kxf2 {[%clk 0:02:30]}  Bh4+ {[%clk 0:02:25]} 11. Ke3 {[%clk 0:02:15]}  Be6 {[%clk 0:02:07]} 12. Bxe6 {[%clk 0:01:31]}  fxe6 {[%clk 0:02:06]} 13. Rxg7 {[%clk 0:01:31]}  Bf6 {[%clk 0:02:04]} 14. Rg1 {[%clk 0:01:00]}  Qe7 {[%clk 0:01:58]} 15. Nc3 {[%clk 0:00:59]}  O-O-O {[%clk 0:01:57]} 16. a4 {[%clk 0:00:56]}  b4 {[%clk 0:01:55]} 17. Ne2 {[%clk 0:00:53]}  Nd4 {[%clk 0:01:39]} 18. Nexd4 {[%clk 0:00:45]}  exd4+ {[%clk 0:01:39]} 19. Nxd4 {[%clk 0:00:46]}  Bxd4+ {[%clk 0:01:23]} 20. Kxd4 {[%clk 0:00:45]}  d5 {[%clk 0:01:13]} 21. Bg5 {[%clk 0:00:38]}  e5+ {[%clk 0:01:02]} 22. Ke3 {[%clk 0:00:33]}  Qc5+ {[%clk 0:01:03]} 23. d4 {[%clk 0:00:30]}  exd4+ {[%clk 0:00:53]} 24. Qxd4 {[%clk 0:00:30]}  Qxc2 {[%clk 0:00:53]} 25. Bxd8 {[%clk 0:00:23]}  Rxd8 {[%clk 0:00:52]} 26. Rac1 {[%clk 0:00:20]}  Qh2 {[%clk 0:00:45]} 27. Rg7 {[%clk 0:00:08]}  Qxh3+ {[%clk 0:00:41]} 28. Ke2 {[%clk 0:00:08]}  Qh2+ {[%clk 0:00:39]} 29. Qf2 {[%clk 0:00:07]}  Qh5+ {[%clk 0:00:36]} 30. Qf3 {[%clk 0:00:07]}  Qh2+ {[%clk 0:00:35]} 31. Qf2 {[%clk 0:00:08]}  Qh5+ {[%clk 0:00:34]} 32. Kf1 {[%clk 0:00:07]}  dxe4 {[%clk 0:00:30]} 33. Rcxc7+ {[%clk 0:00:05]}  Kb8 {[%clk 0:00:29]} 34. Qa7# {[%clk 0:00:06]} 1-0

[Event "January 9 Late 2024"]
[Site "https://www.chess.com"]
[Date "2024.01.09"]
[Round "9"]
[White "Garcia Correa, Jose Ricardo"]
[Black "Yushko, Olga"]
[Result "1-0"]
[Board "143"]
[TimeControl "180+1"]
[WhiteFideId "5101832"]
[BlackFideId "14114500"]
[WhiteElo "2207"]
[BlackElo "2114"]
[WhiteTeam "MEX"]
[BlackTeam "UKR"]
[WhiteClock "0:01:50"]
[BlackClock "0:00:08"]

1. e4 {[%clk 0:03:00]}  e6 {[%clk 0:02:59]} 2. d4 {[%clk 0:03:00]}  d5 {[%clk 0:02:59]} 3. Nc3 {[%clk 0:03:01]}  Nf6 {[%clk 0:02:59]} 4. Bg5 {[%clk 0:03:00]}  Be7 {[%clk 0:02:58]} 5. e5 {[%clk 0:03:00]}  Nfd7 {[%clk 0:02:58]} 6. h4 {[%clk 0:03:01]}  c5 {[%clk 0:02:55]} 7. Nb5 {[%clk 0:03:00]}  cxd4 {[%clk 0:02:32]} 8. Nd6+ {[%clk 0:02:58]}  Kf8 {[%clk 0:02:28]} 9. Bxe7+ {[%clk 0:02:57]}  Kxe7 {[%clk 0:02:27]} 10. f4 {[%clk 0:02:57]}  Nc6 {[%clk 0:02:23]} 11. Qg4 {[%clk 0:02:54]}  Rg8 {[%clk 0:01:53]} 12. Bd3 {[%clk 0:02:52]}  Ndxe5 {[%clk 0:01:37]} 13. fxe5 {[%clk 0:02:48]}  Nxe5 {[%clk 0:01:36]} 14. Nxc8+ {[%clk 0:02:49]}  Rxc8 {[%clk 0:01:36]} 15. Qxd4 {[%clk 0:02:48]}  Nxd3+ {[%clk 0:01:31]} 16. Qxd3 {[%clk 0:02:47]}  Qa5+ {[%clk 0:01:23]} 17. c3 {[%clk 0:02:47]}  Qb6 {[%clk 0:01:16]} 18. O-O-O {[%clk 0:02:43]}  Rc5 {[%clk 0:01:10]} 19. Ne2 {[%clk 0:02:43]}  Rb5 {[%clk 0:01:08]} 20. Rd2 {[%clk 0:02:42]}  Rc8 {[%clk 0:01:01]} 21. Nd4 {[%clk 0:02:41]}  Ra5 {[%clk 0:00:57]} 22. Kb1 {[%clk 0:02:38]}  Ra3 {[%clk 0:00:53]} 23. Nc2 {[%clk 0:02:31]}  Raxc3 {[%clk 0:00:52]} 24. Qxh7 {[%clk 0:02:27]}  R3c4 {[%clk 0:00:31]} 25. Qxg7 {[%clk 0:02:19]}  Qa5 {[%clk 0:00:21]} 26. Qg5+ {[%clk 0:02:15]}  Ke8 {[%clk 0:00:19]} 27. Rhd1 {[%clk 0:02:11]}  Ra4 {[%clk 0:00:19]} 28. a3 {[%clk 0:02:08]}  Qb6 {[%clk 0:00:17]} 29. Qf6 {[%clk 0:02:05]}  Rac4 {[%clk 0:00:16]} 30. Nd4 {[%clk 0:02:04]}  Qc5 {[%clk 0:00:14]} 31. Nxe6 {[%clk 0:02:00]}  fxe6 {[%clk 0:00:14]} 32. Qxe6+ {[%clk 0:02:00]}  Qe7 {[%clk 0:00:14]} 33. Qxe7+ {[%clk 0:01:59]}  Kxe7 {[%clk 0:00:14]} 34. Rxd5 {[%clk 0:01:58]}  Rxh4 {[%clk 0:00:15]} 35. Rd7+ {[%clk 0:01:58]}  Ke6 {[%clk 0:00:15]} 36. Rxb7 {[%clk 0:01:58]}  a5 {[%clk 0:00:14]} 37. Rb6+ {[%clk 0:01:58]}  Ke7 {[%clk 0:00:14]} 38. Rd5 {[%clk 0:01:53]}  a4 {[%clk 0:00:13]} 39. Ra5 {[%clk 0:01:51]}  Rg8 {[%clk 0:00:08]} 40. Ra7+ {[%clk 0:01:50]} 1-0

[Event "January 9 Late 2024"]
[Site "https://www.chess.com"]
[Date "2024.01.09"]
[Round "9"]
[White "Reinecke, Katharina"]
[Black "Vila Dupla, Aurelio"]
[Result "0-1"]
[Board "145"]
[TimeControl "180+1"]
[WhiteFideId "12929727"]
[BlackFideId "2203383"]
[WhiteElo "2026"]
[BlackElo "2160"]
[WhiteTeam "GER"]
[BlackTeam "ESP"]
[WhiteClock "0:00:44"]
[BlackClock "0:00:17"]

1. d4 {[%clk 0:03:00]}  Nf6 {[%clk 0:02:59]} 2. c4 {[%clk 0:03:00]}  g6 {[%clk 0:02:59]} 3. Nf3 {[%clk 0:02:59]}  Bg7 {[%clk 0:02:58]} 4. g3 {[%clk 0:02:58]}  O-O {[%clk 0:02:56]} 5. Bg2 {[%clk 0:02:59]}  c6 {[%clk 0:02:57]} 6. O-O {[%clk 0:02:58]}  d5 {[%clk 0:02:57]} 7. cxd5 {[%clk 0:02:55]}  cxd5 {[%clk 0:02:58]} 8. Nc3 {[%clk 0:02:55]}  Ne4 {[%clk 0:02:58]} 9. e3 {[%clk 0:02:51]}  Nxc3 {[%clk 0:02:57]} 10. bxc3 {[%clk 0:02:44]}  Nc6 {[%clk 0:02:58]} 11. Nd2 {[%clk 0:02:39]}  Na5 {[%clk 0:02:42]} 12. a4 {[%clk 0:02:35]}  Be6 {[%clk 0:02:27]} 13. Ba3 {[%clk 0:02:30]}  Rc8 {[%clk 0:02:26]} 14. Bb4 {[%clk 0:02:17]}  Nc4 {[%clk 0:02:17]} 15. Nxc4 {[%clk 0:02:13]}  Rxc4 {[%clk 0:02:18]} 16. Qb3 {[%clk 0:02:10]}  Qc8 {[%clk 0:01:37]} 17. Rfc1 {[%clk 0:02:01]}  Bh3 {[%clk 0:01:35]} 18. Bxe7 {[%clk 0:01:56]}  Re8 {[%clk 0:01:31]} 19. Bc5 {[%clk 0:01:47]}  Bxg2 {[%clk 0:01:24]} 20. Kxg2 {[%clk 0:01:48]}  b6 {[%clk 0:01:24]} 21. Bb4 {[%clk 0:01:46]}  Qc6 {[%clk 0:01:15]} 22. a5 {[%clk 0:01:44]}  Rc8 {[%clk 0:01:06]} 23. axb6 {[%clk 0:01:42]}  Qxb6 {[%clk 0:01:05]} 24. Ra4 {[%clk 0:01:35]}  Bf8 {[%clk 0:01:04]} 25. Rb1 {[%clk 0:01:28]}  Qc7 {[%clk 0:00:32]} 26. Ba5 {[%clk 0:01:13]}  Qc6 {[%clk 0:00:26]} 27. Rxc4 {[%clk 0:01:11]}  dxc4+ {[%clk 0:00:25]} 28. f3 {[%clk 0:01:01]}  cxb3 {[%clk 0:00:26]} 29. Rxb3 {[%clk 0:01:01]}  Qc4 {[%clk 0:00:25]} 30. Rb7 {[%clk 0:00:57]}  Qe2+ {[%clk 0:00:23]} 31. Kh3 {[%clk 0:00:56]}  Qxf3 {[%clk 0:00:22]} 32. Rxa7 {[%clk 0:00:55]}  Qxe3 {[%clk 0:00:19]} 33. Rc7 {[%clk 0:00:47]}  Rxc7 {[%clk 0:00:18]} 34. Bxc7 {[%clk 0:00:47]}  Qxc3 {[%clk 0:00:18]} 35. Be5 {[%clk 0:00:47]}  Bg7 {[%clk 0:00:17]} 36. Bxg7 {[%clk 0:00:44]}  Kxg7 {[%clk 0:00:17]} 0-1

[Event "January 9 Late 2024"]
[Site "https://www.chess.com"]
[Date "2024.01.09"]
[Round "9"]
[White "Winkels, Marcel"]
[Black "Tikhonov, Viacheslav"]
[Result "0-1"]
[Board "147"]
[TimeControl "180+1"]
[WhiteFideId "1003887"]
[BlackFideId "44196407"]
[WhiteElo "2017"]
[BlackElo "2512"]
[WhiteTeam "NED"]
[BlackTeam "RUS"]
[WhiteClock "0:00:00"]
[BlackClock "0:01:53"]

1. e4 {[%clk 0:03:00]}  c5 {[%clk 0:02:59]} 2. a3 {[%clk 0:02:59]}  g6 {[%clk 0:02:58]} 3. Nf3 {[%clk 0:02:57]}  Bg7 {[%clk 0:02:58]} 4. Bc4 {[%clk 0:02:56]}  Nc6 {[%clk 0:02:57]} 5. O-O {[%clk 0:02:52]}  Nf6 {[%clk 0:02:54]} 6. d3 {[%clk 0:02:51]}  O-O {[%clk 0:02:54]} 7. Nc3 {[%clk 0:02:50]}  e6 {[%clk 0:02:53]} 8. h3 {[%clk 0:02:33]}  d5 {[%clk 0:02:52]} 9. exd5 {[%clk 0:02:31]}  Nxd5 {[%clk 0:02:53]} 10. Bd2 {[%clk 0:02:23]}  Nd4 {[%clk 0:02:51]} 11. Nxd4 {[%clk 0:02:14]}  Bxd4 {[%clk 0:02:47]} 12. Rb1 {[%clk 0:02:12]}  b6 {[%clk 0:02:45]} 13. Ne2 {[%clk 0:02:06]}  Bb7 {[%clk 0:02:43]} 14. Nxd4 {[%clk 0:01:58]}  cxd4 {[%clk 0:02:43]} 15. Bh6 {[%clk 0:01:57]}  Re8 {[%clk 0:02:43]} 16. Re1 {[%clk 0:01:43]}  Qh4 {[%clk 0:02:41]} 17. Qd2 {[%clk 0:01:32]}  f6 {[%clk 0:02:32]} 18. Bxd5 {[%clk 0:01:19]}  Bxd5 {[%clk 0:02:30]} 19. Qf4 {[%clk 0:01:19]}  Qxf4 {[%clk 0:02:25]} 20. Bxf4 {[%clk 0:01:18]}  e5 {[%clk 0:02:25]} 21. Bd2 {[%clk 0:01:17]}  Rac8 {[%clk 0:02:21]} 22. Rbc1 {[%clk 0:01:15]}  Rc6 {[%clk 0:02:19]} 23. Re2 {[%clk 0:01:15]}  Rec8 {[%clk 0:02:18]} 24. Be1 {[%clk 0:01:05]}  Be6 {[%clk 0:02:14]} 25. f3 {[%clk 0:01:01]}  Bf5 {[%clk 0:02:12]} 26. Rd2 {[%clk 0:00:55]}  h5 {[%clk 0:02:08]} 27. g4 {[%clk 0:00:54]}  Be6 {[%clk 0:02:08]} 28. Kf1 {[%clk 0:00:50]}  g5 {[%clk 0:02:07]} 29. Ke2 {[%clk 0:00:48]}  Kf7 {[%clk 0:02:05]} 30. Kd1 {[%clk 0:00:47]}  Rh8 {[%clk 0:02:05]} 31. Rg2 {[%clk 0:00:28]}  Bd5 {[%clk 0:02:05]} 32. Rf2 {[%clk 0:00:24]}  Ke6 {[%clk 0:02:01]} 33. c4 {[%clk 0:00:18]}  dxc3 {[%clk 0:01:58]} 34. Rxc3 {[%clk 0:00:16]}  Rd6 {[%clk 0:01:58]} 35. Kc2 {[%clk 0:00:14]}  hxg4 {[%clk 0:01:56]} 36. hxg4 {[%clk 0:00:13]}  Rh3 {[%clk 0:01:57]} 37. d4 {[%clk 0:00:07]}  exd4 {[%clk 0:01:55]} 38. Re2+ {[%clk 0:00:00]}  Kd7 {[%clk 0:01:53]} 0-1

[Event "January 9 Late 2024"]
[Site "https://www.chess.com"]
[Date "2024.01.09"]
[Round "9"]
[White "Ivanov, Aleksandr"]
[Black "Thake, Conrad"]
[Result "1-0"]
[Board "148"]
[TimeControl "180+1"]
[WhiteFideId "2092980"]
[BlackFideId "5602947"]
[WhiteElo "2142"]
[BlackElo "1851"]
[WhiteTeam "USA"]
[BlackTeam "MLT"]
[WhiteClock "0:00:42"]
[BlackClock "0:00:00"]

1. d4 {[%clk 0:03:00]}  c5 {[%clk 0:02:54]} 2. d5 {[%clk 0:03:00]}  d6 {[%clk 0:02:54]} 3. c4 {[%clk 0:02:59]}  Nf6 {[%clk 0:02:54]} 4. Nc3 {[%clk 0:02:58]}  g6 {[%clk 0:02:53]} 5. e4 {[%clk 0:02:58]}  Bg7 {[%clk 0:02:53]} 6. Be2 {[%clk 0:02:58]}  O-O {[%clk 0:02:53]} 7. Nf3 {[%clk 0:02:57]}  e6 {[%clk 0:02:53]} 8. O-O {[%clk 0:02:56]}  exd5 {[%clk 0:02:53]} 9. exd5 {[%clk 0:02:57]}  Bg4 {[%clk 0:02:50]} 10. Re1 {[%clk 0:02:55]}  Bxf3 {[%clk 0:02:50]} 11. Bxf3 {[%clk 0:02:55]}  Nbd7 {[%clk 0:02:42]} 12. Bf4 {[%clk 0:02:49]}  Ne5 {[%clk 0:02:36]} 13. Bxe5 {[%clk 0:02:44]}  dxe5 {[%clk 0:02:36]} 14. Rxe5 {[%clk 0:02:43]}  Ng4 {[%clk 0:01:56]} 15. Re4 {[%clk 0:02:15]}  f5 {[%clk 0:01:50]} 16. Re6 {[%clk 0:02:10]}  Bd4 {[%clk 0:01:23]} 17. Re2 {[%clk 0:01:47]}  Qh4 {[%clk 0:01:10]} 18. Bxg4 {[%clk 0:01:37]}  Qxg4 {[%clk 0:01:06]} 19. Nb5 {[%clk 0:01:23]}  Bg7 {[%clk 0:00:31]} 20. Nc7 {[%clk 0:01:18]}  Rac8 {[%clk 0:00:29]} 21. Ne6 {[%clk 0:01:16]}  Rf7 {[%clk 0:00:23]} 22. Qc2 {[%clk 0:01:09]}  f4 {[%clk 0:00:19]} 23. f3 {[%clk 0:01:02]}  Qh4 {[%clk 0:00:15]} 24. Nxg7 {[%clk 0:00:57]}  Rxg7 {[%clk 0:00:14]} 25. Rae1 {[%clk 0:00:57]}  Rf7 {[%clk 0:00:13]} 26. Qe4 {[%clk 0:00:56]}  Qf6 {[%clk 0:00:12]} 27. Qe6 {[%clk 0:00:54]}  Rf8 {[%clk 0:00:09]} 28. Qxf6 {[%clk 0:00:54]}  Rxf6 {[%clk 0:00:09]} 29. Re7 {[%clk 0:00:53]}  R6f7 {[%clk 0:00:06]} 30. Kf2 {[%clk 0:00:51]}  Kg7 {[%clk 0:00:06]} 31. b3 {[%clk 0:00:50]}  Kf6 {[%clk 0:00:06]} 32. R1e6+ {[%clk 0:00:49]}  Kg7 {[%clk 0:00:05]} 33. Ke2 {[%clk 0:00:47]}  h6 {[%clk 0:00:02]} 34. Kd3 {[%clk 0:00:46]}  b6 {[%clk 0:00:01]} 35. Ke4 {[%clk 0:00:46]}  g5 {[%clk 0:00:00]} 36. Rxf7+ {[%clk 0:00:42]} 1-0

[Event "January 9 Late 2024"]
[Site "https://www.chess.com"]
[Date "2024.01.10"]
[Round "9"]
[White "Wang, Alexander J"]
[Black "Oliveira, Tiago Batista"]
[Result "1-0"]
[Board "150"]
[TimeControl "180+1"]
[WhiteFideId "30955270"]
[BlackFideId "2108291"]
[WhiteElo "2199"]
[BlackElo "2020"]
[WhiteTeam "USA"]
[BlackTeam "BRA"]
[WhiteClock "0:00:09"]
[BlackClock "0:00:00"]

1. e4 {[%clk 0:02:57]}  e5 {[%clk 0:02:59]} 2. Nf3 {[%clk 0:02:57]}  Nc6 {[%clk 0:02:59]} 3. Bb5 {[%clk 0:02:56]}  a6 {[%clk 0:02:59]} 4. Ba4 {[%clk 0:02:55]}  Nf6 {[%clk 0:02:59]} 5. d4 {[%clk 0:02:51]}  b5 {[%clk 0:02:45]} 6. dxe5 {[%clk 0:02:47]}  Nxe4 {[%clk 0:02:44]} 7. Bb3 {[%clk 0:02:39]}  Nc5 {[%clk 0:01:43]} 8. Bd5 {[%clk 0:02:35]}  Be7 {[%clk 0:01:30]} 9. Nc3 {[%clk 0:02:19]}  O-O {[%clk 0:01:27]} 10. O-O {[%clk 0:02:17]}  Bb7 {[%clk 0:01:25]} 11. Bf4 {[%clk 0:02:04]}  d6 {[%clk 0:01:23]} 12. Re1 {[%clk 0:01:57]}  dxe5 {[%clk 0:01:21]} 13. Nxe5 {[%clk 0:01:58]}  Nxe5 {[%clk 0:01:13]} 14. Bxe5 {[%clk 0:01:57]}  Bf6 {[%clk 0:00:31]} 15. Bxb7 {[%clk 0:01:46]}  Nxb7 {[%clk 0:00:23]} 16. Qxd8 {[%clk 0:01:44]}  Bxd8 {[%clk 0:00:23]} 17. Rad1 {[%clk 0:01:41]}  c6 {[%clk 0:00:20]} 18. Ne4 {[%clk 0:01:33]}  Bb6 {[%clk 0:00:16]} 19. Rd7 {[%clk 0:01:26]}  Nc5 {[%clk 0:00:15]} 20. Nxc5 {[%clk 0:01:17]}  Bxc5 {[%clk 0:00:15]} 21. Rc7 {[%clk 0:01:15]}  Rfc8 {[%clk 0:00:15]} 22. g3 {[%clk 0:00:53]}  Bf8 {[%clk 0:00:14]} 23. Rxc8 {[%clk 0:00:44]}  Rxc8 {[%clk 0:00:14]} 24. Bf4 {[%clk 0:00:45]}  c5 {[%clk 0:00:13]} 25. c3 {[%clk 0:00:42]}  c4 {[%clk 0:00:12]} 26. a3 {[%clk 0:00:41]}  a5 {[%clk 0:00:11]} 27. Re5 {[%clk 0:00:40]}  b4 {[%clk 0:00:10]} 28. Rxa5 {[%clk 0:00:39]}  bxa3 {[%clk 0:00:06]} 29. bxa3 {[%clk 0:00:32]}  h6 {[%clk 0:00:07]} 30. a4 {[%clk 0:00:28]}  Rc6 {[%clk 0:00:06]} 31. Ra8 {[%clk 0:00:25]}  g5 {[%clk 0:00:05]} 32. Be3 {[%clk 0:00:22]}  Kg7 {[%clk 0:00:03]} 33. Bd4+ {[%clk 0:00:22]}  f6 {[%clk 0:00:03]} 34. a5 {[%clk 0:00:20]}  Kf7 {[%clk 0:00:03]} 35. a6 {[%clk 0:00:19]}  Bc5 {[%clk 0:00:02]} 36. Bxc5 {[%clk 0:00:04]}  Rxc5 {[%clk 0:00:03]} 37. Ra7+ {[%clk 0:00:05]}  Kg6 {[%clk 0:00:03]} 38. Rb7 {[%clk 0:00:06]}  Ra5 {[%clk 0:00:03]} 39. a7 {[%clk 0:00:06]}  Ra3 {[%clk 0:00:03]} 40. Kg2 {[%clk 0:00:07]}  h5 {[%clk 0:00:03]} 41. Kf3 {[%clk 0:00:07]}  g4+ {[%clk 0:00:04]} 42. Ke4 {[%clk 0:00:07]}  f5+ {[%clk 0:00:04]} 43. Kd4 {[%clk 0:00:08]}  Ra4 {[%clk 0:00:04]} 44. Kc5 {[%clk 0:00:08]}  f4 {[%clk 0:00:03]} 45. Kb5 {[%clk 0:00:08]}  h4 {[%clk 0:00:04]} 46. Kxa4 {[%clk 0:00:08]}  fxg3 {[%clk 0:00:05]} 47. fxg3 {[%clk 0:00:08]}  hxg3 {[%clk 0:00:00]} 48. hxg3 {[%clk 0:00:09]} 1-0

[Event "January 9 Late 2024"]
[Site "https://www.chess.com"]
[Date "2024.01.09"]
[Round "9"]
[White "Smirnov, Timofey"]
[Black "Guzman Lozano, Campo Elias"]
[Result "1-0"]
[Board "151"]
[TimeControl "180+1"]
[WhiteFideId "24176427"]
[BlackFideId "4403746"]
[WhiteElo "1986"]
[BlackElo "2163"]
[WhiteTeam "RUS"]
[BlackTeam "COL"]
[WhiteClock "0:00:09"]
[BlackClock "0:00:07"]

1. e4 {[%clk 0:03:00]}  c5 {[%clk 0:02:59]} 2. c3 {[%clk 0:03:00]}  Nf6 {[%clk 0:02:57]} 3. e5 {[%clk 0:03:00]}  Nd5 {[%clk 0:02:56]} 4. Nf3 {[%clk 0:02:57]}  d6 {[%clk 0:02:55]} 5. exd6 {[%clk 0:02:53]}  e6 {[%clk 0:02:55]} 6. d4 {[%clk 0:02:42]}  cxd4 {[%clk 0:02:52]} 7. Nxd4 {[%clk 0:02:35]}  Bxd6 {[%clk 0:02:51]} 8. Bc4 {[%clk 0:02:29]}  Nb6 {[%clk 0:02:48]} 9. Bb3 {[%clk 0:02:29]}  O-O {[%clk 0:02:47]} 10. O-O {[%clk 0:02:28]}  Na6 {[%clk 0:02:42]} 11. Re1 {[%clk 0:02:24]}  Nc5 {[%clk 0:02:42]} 12. Be3 {[%clk 0:02:03]}  Nxb3 {[%clk 0:02:40]} 13. axb3 {[%clk 0:02:01]}  Nd5 {[%clk 0:02:39]} 14. Nd2 {[%clk 0:01:55]}  a6 {[%clk 0:02:37]} 15. Nc4 {[%clk 0:01:52]}  Bc7 {[%clk 0:02:33]} 16. Qd2 {[%clk 0:01:46]}  f5 {[%clk 0:02:31]} 17. Bg5 {[%clk 0:01:42]}  Qe8 {[%clk 0:02:27]} 18. Re2 {[%clk 0:01:30]}  Qh5 {[%clk 0:02:26]} 19. g3 {[%clk 0:01:16]}  f4 {[%clk 0:02:18]} 20. Nxe6 {[%clk 0:01:04]}  f3 {[%clk 0:02:05]} 21. Qxd5 {[%clk 0:00:57]}  Rf7 {[%clk 0:01:53]} 22. Re3 {[%clk 0:00:53]}  Bxe6 {[%clk 0:01:50]} 23. Rxe6 {[%clk 0:00:51]}  Qh3 {[%clk 0:01:44]} 24. Ne3 {[%clk 0:00:44]}  Raf8 {[%clk 0:01:30]} 25. Re7 {[%clk 0:00:42]}  Qh5 {[%clk 0:01:22]} 26. Rd1 {[%clk 0:00:29]}  h6 {[%clk 0:01:14]} 27. Rxf7 {[%clk 0:00:25]}  Qxf7 {[%clk 0:01:13]} 28. Qxf7+ {[%clk 0:00:25]}  Rxf7 {[%clk 0:01:12]} 29. Bd8 {[%clk 0:00:23]}  Be5 {[%clk 0:01:03]} 30. Nc4 {[%clk 0:00:21]}  Bb8 {[%clk 0:00:55]} 31. Bb6 {[%clk 0:00:19]}  Kh7 {[%clk 0:00:55]} 32. Rd3 {[%clk 0:00:17]}  g5 {[%clk 0:00:52]} 33. Kf1 {[%clk 0:00:17]}  g4 {[%clk 0:00:52]} 34. Ne3 {[%clk 0:00:16]}  h5 {[%clk 0:00:50]} 35. Nd5 {[%clk 0:00:14]}  Be5 {[%clk 0:00:49]} 36. Bd4 {[%clk 0:00:14]}  Bg7 {[%clk 0:00:46]} 37. Re3 {[%clk 0:00:14]}  Rd7 {[%clk 0:00:44]} 38. Bxg7 {[%clk 0:00:14]}  Kxg7 {[%clk 0:00:33]} 39. c4 {[%clk 0:00:14]}  b5 {[%clk 0:00:32]} 40. Re7+ {[%clk 0:00:14]}  Rxe7 {[%clk 0:00:30]} 41. Nxe7 {[%clk 0:00:15]}  Kf6 {[%clk 0:00:30]} 42. cxb5 {[%clk 0:00:12]}  axb5 {[%clk 0:00:28]} 43. Nd5+ {[%clk 0:00:12]}  Ke5 {[%clk 0:00:28]} 44. Ne3 {[%clk 0:00:12]}  Kd4 {[%clk 0:00:25]} 45. Ke1 {[%clk 0:00:12]}  Kd3 {[%clk 0:00:22]} 46. Kd1 {[%clk 0:00:12]}  b4 {[%clk 0:00:20]} 47. Nf5 {[%clk 0:00:10]}  Ke4 {[%clk 0:00:19]} 48. Ng7 {[%clk 0:00:10]}  h4 {[%clk 0:00:19]} 49. Nh5 {[%clk 0:00:08]}  hxg3 {[%clk 0:00:13]} 50. hxg3 {[%clk 0:00:08]}  Kf5 {[%clk 0:00:12]} 51. Kd2 {[%clk 0:00:08]}  Ke5 {[%clk 0:00:12]} 52. Nf4 {[%clk 0:00:09]}  Ke4 {[%clk 0:00:12]} 53. Nd3 {[%clk 0:00:09]}  Kd4 {[%clk 0:00:07]} 54. Nxb4 {[%clk 0:00:09]} 1-0